fUST/lending_fUST_20250521
["ID","MTS","AMOUNT","RATE_DAILY","PERIOD"]
[361771432,1747773069247,-430.0,0.00017534,2]
[361771433,1747773069256,-430.0,0.00017534,2]
[361771434,1747773069266,-578.9,0.00017534,2]
[361771435,1747773069275,-430.0,0.00017534,2]
[361771436,1747773069285,-608.02,0.00017534,2]
[361771437,1747773069295,-430.0,0.00017534,2]
[361771438,1747773069304,-274.1686103,0.00017534,2]
[361771439,1747773069313,-430.0,0.00017534,2]
[361771440,1747773069323,-430.0,0.00017534,2]
[361771441,1747773069332,-430.0,0.00017534,2]
[361771442,1747773069342,-430.0,0.00017534,2]
[361771443,1747773069351,-430.0,0.00017534,2]
[361771444,1747773069361,-505.32,0.00017534,2]
[361771445,1747773069372,-430.0,0.00017534,2]
[361771446,1747773069382,-430.0,0.00017534,2]
[361771447,1747773069392,-1786.2,0.00017534,2]
[361771448,1747773069401,-430.0,0.00017534,2]
[361771449,1747773069411,-463.29,0.00017534,2]
[361771450,1747773069421,-2017.72,0.00017534,2]
[361771451,1747773069431,-430.0,0.00017534,2]
[361771452,1747773069440,-430.0,0.00017534,2]
[361771453,1747773069450,-430.0,0.00017534,2]
[361771454,1747773069459,-291.81253736,0.00017534,2]
[361771455,1747773069469,-406.12501094,0.00017534,2]
[361771456,1747773069479,-430.0,0.00017534,2]
[361771457,1747773069488,-430.0,0.00017534,2]
[361771458,1747773069498,-892.65,0.00017534,2]
[361771459,1747773069507,-616.21,0.00017534,2]
[361771460,1747773069517,-430.0,0.00017534,2]
[361771461,1747773069526,-430.0,0.00017534,2]
[361771462,1747773069536,-430.0,0.00017534,2]
[361771463,1747773069546,-430.0,0.00017534,2]
[361771464,1747773069555,-430.0,0.00017534,2]
[361771465,1747773069565,-430.0,0.00017534,2]
[361771466,1747773069574,-430.0,0.00017534,2]
[361771467,1747773069584,-943.62,0.00017534,2]
[361771468,1747773069593,-430.0,0.00017534,2]
[361771469,1747773069603,-430.0,0.00017534,2]
[361771470,1747773069612,-430.0,0.00017534,2]
[361771471,1747773069622,-430.0,0.00017534,2]
[361771472,1747773069631,-430.0,0.00017534,2]
[361771473,1747773069641,-959.1,0.00017534,2]
[361771474,1747773069785,-173.58219566,0.00017534,2]
[361771475,1747773069795,-430.0,0.00017534,2]
[361771476,1747773069805,-430.0,0.00017534,2]
[361771477,1747773069815,-739.12,0.00017534,2]
[361771478,1747773069825,-430.0,0.00017534,2]
[361771479,1747773069835,-738.39,0.00017534,2]
[361771480,1747773069845,-340.0,0.00017534,2]
[361771481,1747773069855,-805.15,0.00017534,2]
[361771482,1747773069864,-430.0,0.00017534,2]
[361771483,1747773069874,-430.0,0.00017534,2]
[361771484,1747773069884,-3703.4,0.00017534,2]
[361771485,1747773069893,-430.0,0.00017534,2]
[361771486,1747773069903,-848.13,0.00017534,2]
[361771487,1747773069913,-1104.97,0.00017534,2]
[361771488,1747773069923,-587.05,0.00017534,2]
[361771489,1747773069932,-1334.29,0.00017534,2]
[361771490,1747773069942,-318.53186603,0.00017534,2]
[361771491,1747773069951,-430.0,0.00017534,2]
[361771492,1747773069961,-430.0,0.00017534,2]
[361771493,1747773069970,-1167.29,0.00017534,2]
[361771494,1747773069980,-430.0,0.00017534,2]
[361771495,1747773069989,-430.0,0.00017534,2]
[361771496,1747773069999,-1353.83,0.00017534,2]
[361771497,1747773070009,-430.0,0.00017534,2]
[361771498,1747773070019,-430.0,0.00017534,2]
[361771499,1747773070029,-430.0,0.00017534,2]
[361771500,1747773070038,-430.0,0.00017534,2]
[361771501,1747773070048,-4797.69,0.00017534,2]
[361771502,1747773070058,-264.88185299,0.00017534,2]
[361771503,1747773070067,-557.79,0.00017534,2]
[361771504,1747773070078,-335.78637219,0.00017534,2]
[361771505,1747773070087,-200.58551641,0.00017534,2]
[361771506,1747773070097,-911.0,0.00017534,2]
[361771507,1747773070107,-4007.96,0.00017534,2]
[361771508,1747773070116,-430.0,0.00017534,2]
[361771509,1747773070126,-1236.76,0.00017534,2]
[361771510,1747773070135,-430.0,0.00017534,2]
[361771511,1747773070144,-975.29,0.00017534,2]
[361771512,1747773070154,-430.0,0.00017534,2]
[361771513,1747773070165,-430.0,0.00017534,2]
[361771514,1747773070174,-430.0,0.00017534,2]
[361771515,1747773070183,-487.56,0.00017534,2]
[361771516,1747773070193,-430.0,0.00017534,2]
[361771517,1747773070202,-430.0,0.00017534,2]
[361771518,1747773070212,-481.37,0.00017534,2]
[361771519,1747773070221,-430.0,0.00017534,2]
[361771520,1747773070230,-1094.96,0.00017534,2]
[361771521,1747773070239,-430.0,0.00017534,2]
[361771522,1747773070249,-430.0,0.00017534,2]
[361771523,1747773070258,-465.43,0.00017534,2]
[361771524,1747773070267,-430.0,0.00017534,2]
[361771525,1747773070277,-5479.04,0.00017534,2]
[361771526,1747773070286,-430.0,0.00017534,2]
[361771527,1747773070295,-430.0,0.00017534,2]
[361771528,1747773070304,-341.59,0.00017534,2]
[361771529,1747773070313,-327.36227462,0.00017534,2]
[361771530,1747773070323,-430.0,0.00017534,2]
[361771531,1747773070332,-430.0,0.00017534,2]
[361771532,1747773070342,-441.06,0.00017534,2]
[361771533,1747773070352,-430.0,0.00017534,2]
[361771534,1747773070361,-1079.7,0.00017534,2]
[361771535,1747773070373,-430.0,0.00017534,2]
[361771536,1747773070382,-345.58150225,0.00017534,2]
[361771537,1747773070392,-430.0,0.00017534,2]
[361771538,1747773070401,-746.19,0.00017534,2]
[361771539,1747773070411,-430.0,0.00017534,2]
[361771540,1747773070421,-430.0,0.00017534,2]
[361771541,1747773070431,-628.21,0.00017534,2]
[361771542,1747773070440,-430.0,0.00017534,2]
[361771543,1747773070452,-799.63,0.00017534,2]
[361771544,1747773070461,-1092.67,0.00017534,2]
[361771545,1747773070471,-430.0,0.00017534,2]
[361771546,1747773070480,-952.84,0.00017534,2]
[361771547,1747773070490,-456.3,0.00017534,2]
[361771548,1747773070499,-574.9,0.00017534,2]
[361771549,1747773070508,-945.71,0.00017534,2]
[361771550,1747773070517,-430.0,0.00017534,2]
[361771551,1747773070527,-430.0,0.00017534,2]
[361771552,1747773070538,-485.0,0.00017534,2]
[361771553,1747773070550,-570.81,0.00017534,2]
[361771554,1747773070559,-1977.39,0.00017534,2]
[361771555,1747773070570,-497.66,0.00017534,2]
[361771556,1747773070580,-658.86,0.00017534,2]
[361771557,1747773070590,-430.0,0.00017534,2]
[361771558,1747773070600,-430.0,0.00017534,2]
[361771559,1747773070610,-462.84438821,0.00017534,2]
[361771560,1747773070619,-430.0,0.00017534,2]
[361771561,1747773070629,-430.0,0.00017534,2]
[361771562,1747773070638,-430.0,0.00017534,2]
[361771563,1747773070648,-430.0,0.00017534,2]
[361771564,1747773070658,-430.0,0.00017534,2]
[361771565,1747773070667,-622.8,0.00017534,2]
[361771566,1747773070677,-430.0,0.00017534,2]
[361771567,1747773070687,-430.0,0.00017534,2]
[361771568,1747773070697,-430.0,0.00017534,2]
[361771569,1747773070707,-1986.39,0.00017534,2]
[361771570,1747773070722,-430.0,0.00017534,2]
[361771571,1747773070737,-430.0,0.00017534,2]
[361771572,1747773070747,-430.0,0.00017534,2]
[361771573,1747773070757,-967.97,0.00017534,2]
[361771574,1747773070767,-1002.0,0.0001758,2]
[361771575,1747773070776,-151.0,0.000176,2]
[361771576,1747773070786,-501.88932051,0.00017606,2]
[361771577,1747773070797,-500.0,0.00017606,2]
[361771578,1747773070807,-500.0,0.00017648,2]
[361771579,1747773070816,-1665.45077278,0.00017731,2]
[361771580,1747773070826,-1000.0,0.00017758,2]
[361771581,1747773070836,-500.0,0.00017758,2]
[361771582,1747773070845,-1000.0,0.00017758,2]
[361771583,1747773070855,-820.74,0.00017792,3]
[361771584,1747773070865,-410.38,0.00017792,3]
[361771585,1747773070874,-151.0,0.000178,2]
[361771586,1747773070884,-160.0,0.00017807,2]
[361771587,1747773070894,-212.38718278,0.00017808,3]
[361771588,1747773070903,-430.0,0.00017808,2]
[361771589,1747773070913,-430.0,0.00017808,2]
[361771590,1747773070922,-430.0,0.00017808,2]
[361771591,1747773070932,-430.0,0.00017808,2]
[361771592,1747773070941,-430.0,0.00017808,2]
[361771593,1747773070951,-298.5,0.00017808,2]
[361771594,1747773070960,-151.0,0.00017808,2]
[361771595,1747773070970,-430.0,0.00017808,2]
[361771596,1747773070979,-430.0,0.00017808,2]
[361771597,1747773070989,-151.0,0.00017808,2]
[361771598,1747773070999,-430.0,0.00017808,2]
[361771599,1747773071008,-430.0,0.00017808,2]
[361771600,1747773071018,-430.0,0.00017808,2]
[361771601,1747773071027,-430.46170922,0.00017808,2]
[361771602,1747773071037,-430.0,0.00017808,2]
[361771603,1747773071046,-305.76326926,0.00017808,2]
[361771604,1747773071056,-430.0,0.00017808,2]
[361771605,1747773071065,-151.0,0.00017808,2]
[361771606,1747773071075,-292.800536,0.00017808,2]
[361771607,1747773071085,-430.0,0.00017808,2]
[361771608,1747773071095,-430.0,0.00017808,2]
[361771609,1747773071104,-237.929788,0.00017808,2]
[361771610,1747773071114,-237.929788,0.00017808,2]
[361771611,1747773071124,-479.903918,0.00017808,2]
[361771612,1747773071133,-430.0,0.00017808,2]
[361771613,1747773071142,-479.903918,0.00017808,2]
[361771614,1747773071152,-430.0,0.00017808,2]
[361771615,1747773071162,-650.41,0.00017808,2]
[361771616,1747773071171,-430.0,0.00017808,2]
[361771617,1747773071181,-430.0,0.00017808,2]
[361771618,1747773071190,-151.0,0.00017808,2]
[361771619,1747773071200,-151.0,0.00017808,2]
[361771620,1747773071210,-430.0,0.00017808,2]
[361771621,1747773071220,-430.0,0.00017808,2]
[361771622,1747773071229,-430.0,0.00017808,2]
[361771623,1747773071239,-472.94658928,0.00017808,2]
[361771624,1747773071248,-471.121553,0.00017808,2]
[361771625,1747773071259,-430.0,0.00017808,2]
[361771626,1747773071269,-430.0,0.00017808,2]
[361771627,1747773071278,-430.0,0.00017808,2]
[361771628,1747773071288,-430.0,0.00017808,2]
[361771629,1747773071298,-430.0,0.00017808,2]
[361771630,1747773071309,-430.0,0.00017808,2]
[361771631,1747773071318,-430.0,0.00017808,2]
[361771632,1747773071328,-433.41,0.00017808,2]
[361771633,1747773071337,-430.0,0.00017808,2]
[361771634,1747773071347,-430.0,0.00017808,2]
[361771635,1747773071356,-430.0,0.00017808,2]
[361771636,1747773071366,-430.0,0.00017808,2]
[361771637,1747773071378,-430.0,0.00017808,2]
[361771638,1747773071388,-430.0,0.00017808,2]
[361771639,1747773071397,-430.0,0.00017808,2]
[361771640,1747773071407,-430.0,0.00017808,2]
[361771641,1747773071417,-477.81,0.00017808,2]
[361771642,1747773071427,-430.0,0.00017808,2]
[361771643,1747773071437,-850.21,0.00017808,2]
[361771644,1747773071447,-430.0,0.00017808,2]
[361771645,1747773071457,-425.28919822,0.00017808,2]
[361771646,1747773071466,-430.0,0.00017808,2]
[361771647,1747773071476,-634.51,0.00017808,2]
[361771648,1747773071485,-430.0,0.00017808,2]
[361771649,1747773071495,-430.0,0.00017808,2]
[361771650,1747773071504,-430.0,0.00017808,2]
[361771651,1747773071514,-430.0,0.00017808,2]
[361771652,1747773071523,-430.0,0.00017808,2]
[361771653,1747773071535,-430.0,0.00017808,2]
[361771654,1747773071547,-430.0,0.00017808,2]
[361771655,1747773071556,-401.157945,0.00017808,2]
[361771656,1747773071565,-430.0,0.00017808,2]
[361771657,1747773071575,-401.157945,0.00017808,2]
[361771658,1747773071584,-507.92,0.00017808,2]
[361771659,1747773071594,-430.0,0.00017808,2]
[361771660,1747773071603,-430.0,0.00017808,2]
[361771661,1747773071613,-430.0,0.00017808,2]
[361771662,1747773071623,-430.0,0.00017808,2]
[361771663,1747773071632,-430.0,0.00017808,2]
[361771664,1747773071750,-556.63,0.00017808,2]
[361771665,1747773071770,-430.0,0.00017808,2]
[361771666,1747773071780,-430.0,0.00017808,2]
[361771667,1747773071790,-430.0,0.00017808,2]
[361771668,1747773071800,-430.0,0.00017808,2]
[361771669,1747773071809,-675.98,0.00017808,2]
[361771670,1747773071819,-430.0,0.00017808,2]
[361771671,1747773071828,-430.0,0.00017808,2]
[361771672,1747773071837,-430.0,0.00017808,2]
[361771673,1747773071847,-430.0,0.00017808,2]
[361771674,1747773071856,-430.0,0.00017808,2]
[361771675,1747773071866,-430.0,0.00017808,2]
[361771676,1747773071875,-480.01,0.00017808,2]
[361771677,1747773071885,-430.0,0.00017808,2]
[361771678,1747773071894,-430.0,0.00017808,2]
[361771679,1747773071904,-465.58329343,0.00017808,2]
[361771680,1747773071913,-430.0,0.00017808,2]
[361771681,1747773071922,-430.0,0.00017808,2]
[361771682,1747773071931,-430.0,0.00017808,2]
[361771683,1747773071940,-430.0,0.00017808,2]
[361771684,1747773071950,-430.0,0.00017808,2]
[361771685,1747773071959,-430.0,0.00017808,2]
[361771686,1747773071968,-430.0,0.00017808,2]
[361771687,1747773071977,-534.52,0.00017808,2]
[361771688,1747773071985,-430.0,0.00017808,2]
[361771689,1747773071994,-450.0,0.00017808,2]
[361771690,1747773072003,-430.0,0.00017808,2]
[361771691,1747773072013,-430.0,0.00017808,2]
[361771692,1747773072022,-430.0,0.00017808,2]
[361771693,1747773072031,-527.4,0.00017808,2]
[361771694,1747773072040,-430.0,0.00017808,2]
[361771695,1747773072049,-430.0,0.00017808,2]
[361771696,1747773072059,-430.0,0.00017808,2]
[361771697,1747773072069,-430.0,0.00017808,2]
[361771698,1747773072078,-430.0,0.00017808,2]
[361771699,1747773072087,-574.63,0.00017808,2]
[361771700,1747773072096,-430.0,0.00017808,2]
[361771701,1747773072106,-430.0,0.00017808,2]
[361771702,1747773072115,-430.0,0.00017808,2]
[361771703,1747773072124,-450.0,0.00017808,2]
[361771704,1747773072132,-430.0,0.00017808,2]
[361771705,1747773072141,-430.0,0.00017808,2]
[361771706,1747773072150,-1348.5,0.00017808,2]
[361771707,1747773072159,-430.0,0.00017808,2]
[361771708,1747773072169,-291.20886855,0.00017808,2]
[361771709,1747773072178,-430.0,0.00017808,2]
[361771710,1747773072187,-241.67798468,0.00017808,2]
[361771711,1747773072196,-430.0,0.00017808,2]
[361771712,1747773072206,-1733.29,0.00017808,2]
[361771713,1747773072215,-430.0,0.00017808,2]
[361771714,1747773072224,-430.0,0.00017808,2]
[361771715,1747773072234,-430.0,0.00017808,2]
[361771716,1747773072243,-578.9,0.00017808,2]
[361771717,1747773072252,-475.20330438,0.00017808,2]
[361771718,1747773072261,-608.02,0.00017808,2]
[361771719,1747773072271,-430.0,0.00017808,2]
[361771720,1747773072280,-430.0,0.00017808,2]
[361771721,1747773072290,-430.0,0.00017808,2]
[361771722,1747773072299,-430.0,0.00017808,2]
[361771723,1747773072308,-430.0,0.00017808,2]
[361771724,1747773072317,-577.93761537,0.00017808,2]
[361771725,1747773072327,-505.32,0.00017808,2]
[361771726,1747773072336,-430.0,0.00017808,2]
[361771727,1747773072345,-430.0,0.00017808,2]
[361771728,1747773072355,-1786.2,0.00017808,2]
[361771729,1747773072364,-430.0,0.00017808,2]
[361771730,1747773072377,-463.29,0.00017808,2]
[361771731,1747773072386,-2017.72,0.00017808,2]
[361771732,1747773072396,-430.0,0.00017808,2]
[361771733,1747773072407,-430.0,0.00017808,2]
[361771734,1747773072417,-430.0,0.00017808,2]
[361771735,1747773072426,-430.0,0.00017808,2]
[361771736,1747773072435,-430.0,0.00017808,2]
[361771737,1747773072446,-892.65,0.00017808,2]
[361771738,1747773072456,-616.21,0.00017808,2]
[361771739,1747773072466,-430.0,0.00017808,2]
[361771740,1747773072476,-430.0,0.00017808,2]
[361771741,1747773072485,-450.0,0.00017808,2]
[361771742,1747773072495,-430.0,0.00017808,2]
[361771743,1747773072505,-430.0,0.00017808,2]
[361771744,1747773072515,-430.0,0.00017808,2]
[361771745,1747773072524,-943.62,0.00017808,2]
[361771746,1747773072534,-213.28876023,0.00017808,2]
[361771747,1747773072543,-430.0,0.00017808,2]
[361771748,1747773072553,-430.0,0.00017808,2]
[361771749,1747773072562,-430.0,0.00017808,2]
[361771750,1747773072572,-430.0,0.00017808,2]
[361771751,1747773072582,-432.54176734,0.00017808,2]
[361771752,1747773072591,-959.1,0.00017808,2]
[361771753,1747773072601,-430.0,0.00017808,2]
[361771754,1747773072610,-413.42105719,0.00017808,2]
[361771755,1747773072620,-739.12,0.00017808,2]
[361771756,1747773072629,-430.0,0.00017808,2]
[361771757,1747773072639,-738.39,0.00017808,2]
[361771758,1747773072649,-805.15,0.00017808,2]
[361771759,1747773072658,-168.20739108,0.00017808,2]
[361771760,1747773072668,-430.0,0.00017808,2]
[361771761,1747773072677,-3703.4,0.00017808,2]
[361771762,1747773072687,-430.0,0.00017808,2]
[361771763,1747773072696,-848.13,0.00017808,2]
[361771764,1747773072705,-1104.97,0.00017808,2]
[361771765,1747773072715,-587.05,0.00017808,2]
[361771766,1747773072724,-1334.29,0.00017808,2]
[361771767,1747773072734,-430.0,0.00017808,2]
[361771768,1747773072743,-430.0,0.00017808,2]
[361771769,1747773072752,-1167.29,0.00017808,2]
[361771770,1747773072761,-430.0,0.00017808,2]
[361771771,1747773072771,-430.0,0.00017808,2]
[361771772,1747773072780,-1353.83,0.00017808,2]
[361771773,1747773072790,-430.0,0.00017808,2]
[361771774,1747773072800,-430.0,0.00017808,2]
[361771775,1747773072810,-232.00488822,0.00017808,2]
[361771776,1747773072819,-430.0,0.00017808,2]
[361771777,1747773072828,-4797.69,0.00017808,2]
[361771778,1747773072837,-557.79,0.00017808,2]
[361771779,1747773072847,-911.0,0.00017808,2]
[361771780,1747773072857,-4007.96,0.00017808,2]
[361771781,1747773072867,-430.0,0.00017808,2]
[361771782,1747773072876,-1236.76,0.00017808,2]
[361771783,1747773072886,-430.0,0.00017808,2]
[361771784,1747773072895,-975.29,0.00017808,2]
[361771785,1747773072905,-430.0,0.00017808,2]
[361771786,1747773072914,-430.0,0.00017808,2]
[361771787,1747773072924,-430.0,0.00017808,2]
[361771788,1747773072933,-487.56,0.00017808,2]
[361771789,1747773072943,-430.0,0.00017808,2]
[361771790,1747773072952,-430.0,0.00017808,2]
[361771791,1747773072961,-481.37,0.00017808,2]
[361771792,1747773072970,-430.0,0.00017808,2]
[361771793,1747773072979,-1094.96,0.00017808,2]
[361771794,1747773072989,-430.0,0.00017808,2]
[361771795,1747773072998,-430.0,0.00017808,2]
[361771796,1747773073008,-465.43,0.00017808,2]
[361771797,1747773073017,-430.0,0.00017808,2]
[361771798,1747773073027,-5479.04,0.00017808,2]
[361771799,1747773073036,-430.0,0.00017808,2]
[361771800,1747773073045,-430.0,0.00017808,2]
[361771801,1747773073055,-430.0,0.00017808,2]
[361771802,1747773073064,-430.0,0.00017808,2]
[361771803,1747773073074,-441.06,0.00017808,2]
[361771804,1747773073083,-430.0,0.00017808,2]
[361771805,1747773073092,-1079.7,0.00017808,2]
[361771806,1747773073102,-430.0,0.00017808,2]
[361771807,1747773073111,-400.0,0.00017808,2]
[361771808,1747773073120,-746.19,0.00017808,2]
[361771809,1747773073129,-430.0,0.00017808,2]
[361771810,1747773073139,-430.0,0.00017808,2]
[361771811,1747773073148,-430.0,0.00017808,2]
[361771812,1747773073158,-628.21,0.00017808,2]
[361771813,1747773073167,-799.63,0.00017808,2]
[361771814,1747773073177,-1092.67,0.00017808,2]
[361771815,1747773073186,-430.0,0.00017808,2]
[361771816,1747773073195,-952.84,0.00017808,2]
[361771817,1747773073205,-456.3,0.00017808,2]
[361771818,1747773073215,-574.9,0.00017808,2]
[361771819,1747773073224,-945.71,0.00017808,2]
[361771820,1747773073233,-430.0,0.00017808,2]
[361771821,1747773073242,-430.0,0.00017808,2]
[361771822,1747773073252,-485.0,0.00017808,2]
[361771823,1747773073262,-570.81,0.00017808,2]
[361771824,1747773073272,-1977.39,0.00017808,2]
[361771825,1747773073281,-497.66,0.00017808,2]
[361771826,1747773073290,-658.86,0.00017808,2]
[361771827,1747773073300,-430.0,0.00017808,2]
[361771828,1747773073309,-430.0,0.00017808,2]
[361771829,1747773073318,-430.0,0.00017808,2]
[361771830,1747773073328,-430.0,0.00017808,2]
[361771831,1747773073337,-430.0,0.00017808,2]
[361771832,1747773073347,-430.0,0.00017808,2]
[361771833,1747773073356,-430.0,0.00017808,2]
[361771834,1747773073365,-622.8,0.00017808,2]
[361771835,1747773073377,-347.46740828,0.00017808,2]
[361771836,1747773073387,-430.0,0.00017808,2]
[361771837,1747773073396,-430.0,0.00017808,2]
[361771838,1747773073406,-1986.39,0.00017808,2]
[361771839,1747773073416,-430.0,0.00017808,2]
[361771840,1747773073540,-430.0,0.00017808,2]
[361771841,1747773073550,-430.0,0.00017808,2]
[361771842,1747773073559,-967.97,0.00017808,2]
[361771843,1747773073569,-151.0,0.00017831,2]
[361771844,1747773073579,-151.0,0.00017831,2]
[361771845,1747773073588,-6219.7298182,0.00017831,2]
[361771846,1747773073597,-1500.0,0.00017868,2]
[361771847,1747773073607,-500.0,0.00017868,2]
[361771848,1747773073617,-1000.0,0.00017868,2]
[361771849,1747773073626,-1000.0,0.00017868,2]
[361771850,1747773073636,-500.0,0.00017868,2]
[361771851,1747773073646,-500.0,0.00017871,2]
[361771852,1747773073655,-151.0,0.000179,2]
[361771853,1747773073666,-420.0,0.00017929,2]
[361771854,1747773073676,-38098.37220328,0.00018,2]
[361771855,1747773073686,-723.58018411,0.00018067,2]
[361771856,1747773073696,-500.0,0.00018068,2]
[361771857,1747773073705,-500.0,0.00018068,2]
[361771858,1747773073715,-500.0,0.00018068,2]
[361771859,1747773073725,-187.12955491,0.00018068,2]
[361771860,1747773073734,-155.0,0.00018077,2]
[361771861,1747773073744,-207.45238772,0.0001808,2]
[361771862,1747773073754,-430.0,0.00018082,2]
[361771863,1747773073763,-430.0,0.00018082,2]
[361771864,1747773073772,-430.0,0.00018082,2]
[361771865,1747773073782,-430.0,0.00018082,2]
[361771866,1747773073791,-361.0699374,0.00018082,2]
[361771867,1747773073801,-430.0,0.00018082,2]
[361771868,1747773073810,-430.0,0.00018082,2]
[361771869,1747773073820,-430.0,0.00018082,2]
[361771870,1747773073830,-430.0,0.00018082,2]
[361771871,1747773073839,-150.73620621,0.00018082,2]
[361771872,1747773073849,-430.0,0.00018082,2]
[361771873,1747773073858,-307.45737174,0.00018082,2]
[361771874,1747773073868,-151.0,0.00018082,2]
[361771875,1747773073877,-494.23,0.00018082,2]
[361771876,1747773073887,-430.0,0.00018082,2]
[361771877,1747773073896,-237.929788,0.00018082,2]
[361771878,1747773073906,-237.929788,0.00018082,2]
[361771879,1747773073915,-479.903918,0.00018082,2]
[361771880,1747773073924,-430.0,0.00018082,2]
[361771881,1747773073934,-479.903918,0.00018082,2]
[361771882,1747773073943,-430.0,0.00018082,2]
[361771883,1747773073953,-650.41,0.00018082,2]
[361771884,1747773073962,-430.0,0.00018082,2]
[361771885,1747773073971,-430.0,0.00018082,2]
[361771886,1747773073981,-151.0,0.00018082,2]
[361771887,1747773073990,-430.0,0.00018082,2]
[361771888,1747773074000,-430.0,0.00018082,2]
[361771889,1747773074009,-465.11393011,0.00018082,2]
[361771890,1747773074019,-430.0,0.00018082,2]
[361771891,1747773074028,-430.0,0.00018082,2]
[361771892,1747773074038,-430.0,0.00018082,2]
[361771893,1747773074047,-430.0,0.00018082,2]
[361771894,1747773074057,-430.0,0.00018082,2]
[361771895,1747773074067,-430.0,0.00018082,2]
[361771896,1747773074076,-430.0,0.00018082,2]
[361771897,1747773074086,-433.41,0.00018082,2]
[361771898,1747773074095,-430.0,0.00018082,2]
[361771899,1747773074104,-430.0,0.00018082,2]
[361771900,1747773074114,-430.0,0.00018082,2]
[361771901,1747773074124,-430.0,0.00018082,2]
[361771902,1747773074134,-430.0,0.00018082,2]
[361771903,1747773074144,-430.0,0.00018082,2]
[361771904,1747773074153,-430.0,0.00018082,2]
[361771905,1747773074163,-157.94867918,0.00018082,2]
[361771906,1747773074173,-477.81,0.00018082,2]
[361771907,1747773074183,-430.0,0.00018082,2]
[361771908,1747773074193,-850.21,0.00018082,2]
[361771909,1747773074203,-430.0,0.00018082,2]
[361771910,1747773074212,-430.0,0.00018082,2]
[361771911,1747773074222,-634.51,0.00018082,2]
[361771912,1747773074231,-430.0,0.00018082,2]
[361771913,1747773074241,-394.39,0.00018082,2]
[361771914,1747773074250,-430.0,0.00018082,2]
[361771915,1747773074260,-430.0,0.00018082,2]
[361771916,1747773074269,-430.0,0.00018082,2]
[361771917,1747773074279,-430.0,0.00018082,2]
[361771918,1747773074288,-400.34,0.00018082,2]
[361771919,1747773074298,-401.157945,0.00018082,2]
[361771920,1747773074307,-430.0,0.00018082,2]
[361771921,1747773074325,-401.157945,0.00018082,2]
[361771922,1747773074345,-507.92,0.00018082,2]
[361771923,1747773074364,-430.0,0.00018082,2]
[361771924,1747773074386,-430.0,0.00018082,2]
[361771925,1747773074407,-430.0,0.00018082,2]
[361771926,1747773074427,-430.0,0.00018082,2]
[361771927,1747773074447,-430.0,0.00018082,2]
[361771928,1747773074463,-556.63,0.00018082,2]
[361771929,1747773074480,-430.0,0.00018082,2]
[361771930,1747773074501,-430.0,0.00018082,2]
[361771931,1747773074525,-430.0,0.00018082,2]